Cogmind - Beta 14 @@@ ROGUE MODE // 2024.08.17 @ 23:12:13 Player: CogMan Result: Core destroyed Performance ------------- Evolutions (0) 0 Regions Visited (4) 800 Robots Destroyed (37) 185 Value Destroyed (766) 766 Prototype IDs (23) 460 Alien Tech Used (0) 0 Bonus (325) 325 TOTAL SCORE: 2536 Bonus ------- Follower Combat Kills 25 Aligned with FarCom 300 Cogmind --------- Core Integrity 0/250 Matter 259/300 Energy 112/160 System Corruption 0% Temperature Critical (618) Movement Walking (190) Ox1 Location -9/Mines Parts ------- > --- POWER (1) -------- Light Nuclear Core > --- PROPULSION (2) --- Aluminum Leg Carbon-fiber Leg > --- UTILITY (2) ------ Large Storage Unit Improved Terrain Scanner > --- WEAPON (2) ------- Beamcaster Guided Plasma Cannon > --- INVENTORY (15) --- Light Ion Engine Aluminum Leg Aluminum Leg Improved Heat Sink Small Storage Unit Visual Processing Unit Sensor Array Improved Terrain Scanner Seismic Detector Targeting Computer Hacking Suite Small Laser Light Assault Rifle Mining Laser Mining Laser Peak State ------------ > --- POWER ------------ Light Nuclear Core > --- PROPULSION ------- Aluminum Leg Carbon-fiber Leg > --- UTILITY ---------- Large Storage Unit Improved Terrain Scanner > --- WEAPON ----------- Beamcaster Guided Plasma Cannon > --- INVENTORY -------- Light Ion Engine Aluminum Leg Aluminum Leg Improved Heat Sink Small Storage Unit Visual Processing Unit Sensor Array Improved Terrain Scanner Seismic Detector Targeting Computer Hacking Suite Small Laser Light Assault Rifle Mining Laser Mining Laser [Rating: 26] Favorites ----------- Power Light Ion Engine Engine Light Ion Engine Power Core Light Nuclear Core Propulsion Aluminum Leg Leg Aluminum Leg Utility Improved Terrain Scanner Device Improved Terrain Scanner Storage Large Storage Unit Weapon Small Laser Energy Gun Small Laser Energy Cannon Guided Plasma Cannon Ballistic Gun Light Assault Rifle Build | -11 -10 -10 -10 -9 ------- Run | Yrd Mat Min Exi Min Slots Evolved . | . . . . . Power . | . . . . . Propulsion . | . . . . . Utility . | . . . . . Weapon . | . . . . . Parts Attached 27 | 7 11 1 . 8 Power 5 | 1 2 1 . 1 Engine 4 | 1 2 1 . . Core 1 | . . . . 1 Reactor . | . . . . . Propulsion 8 | 2 4 . . 2 Treads . | . . . . . Leg 8 | 2 4 . . 2 Wheel . | . . . . . Hover . | . . . . . Flight . | . . . . . Utility 6 | 2 4 . . . Device 4 | 1 3 . . . Storage 2 | 1 1 . . . Processor . | . . . . . Hackware . | . . . . . Protection . | . . . . . Artifact . | . . . . . Weapon 8 | 2 1 . . 5 Energy Gun 5 | 2 1 . . 2 Energy Cannon 2 | . . . . 2 Ballistic Gun 1 | . . . . 1 Ballistic Cannon . | . . . . . Launcher . | . . . . . Special Weapon . | . . . . . Impact Weapon . | . . . . . Slashing Weapon . | . . . . . Piercing Weapon . | . . . . . Special Melee Weapon . | . . . . . Unidentified Prototypes . | . . . . . Parts Lost 4 | . 1 1 . 2 Power 2 | . 1 1 . . Propulsion . | . . . . . Utility . | . . . . . Weapon 2 | . . . . 2 Highest Loss Streak 2 | . 1 1 . 2 To Critical Strikes . | . . . . . Average Slot Usage (%) 99 | . 99 99 100 99 Engine 13 | . 13 13 14 12 Leg 28 | . 28 28 28 28 Device 14 | . 14 14 14 14 Storage 14 | . 14 14 14 14 Energy Gun 27 | . 28 28 28 24 Peak Build Rating 26 | 7 10 11 11 26 Average Rating 10 | 5 9 10 11 12 On Entrance 7 | . 7 10 11 11 Naked Turns . | . . . . . Heaviest Build 32 | 12 27 27 27 32 Greatest Support 25 | 20 20 20 20 25 Greatest Overweight (x) 1 | . 1 1 1 1 Average Overweight (x) . | . . 1 1 1 Largest Inventory Capacity 15 | 8 15 15 15 15 Average Capacity 12 | 7 9 15 15 15 Most Carried 15 | 2 12 14 15 15 Average Carried 11 | . 7 12 14 15 Final Capacity 15 | 8 15 15 15 15 Final Carried 15 | 2 12 14 15 15 Class Distribution -------------------- 50% | Scavenger-Mutant 34% | Mutant 14% | Scavenger-Skirmisher Dominant Class ---------------- Mutant | -10/Materials Scavenger-Mutant | -10/Mines Scavenger-Mutant | -10/Exiles Scavenger-Skirmisher | -9/Mines Resources | -11 -10 -10 -10 -9 ----------- Run | Yrd Mat Min Exi Min Matter Collected 480 | 270 110 10 . 90 Remotely . | . . . . . Salvage Created 1280 | 202 739 92 . 247 Parts 95 | 23 50 8 . 14 Haulers Intercepted 1 | . 1 . . . Recyclers Shooed . | . . . . . Parts Field Recycled . | . . . . . Retrieved Matter . | . . . . . Parts Self-Destructed . | . . . . . Prevented . | . . . . . Kills | -11 -10 -10 -10 -9 ------- Run | Yrd Mat Min Exi Min Combat Hostiles Destroyed 19 | . 11 1 . 7 Guns 16 | . 11 1 . 4 Cannons 3 | . . . . 3 Classes Destroyed 10 | 3 5 . . 2 Worker 3 | 2 1 . . . Builder 1 | . 1 . . . Tunneler 8 | 5 1 2 . . Hauler 1 | . 1 . . . Recycler 1 | 1 . . . . Operator 2 | . 2 . . . Watcher 2 | . 2 . . . Swarmer 3 | . . . . 3 Grunt 14 | . 11 1 . 2 Brawler 2 | . . . . 2 Best Kill Streak 6 | 6 4 2 . 5 Combat Bots Only 5 | . 2 1 . 5 Max Kills in Single Turn 1 | 1 1 1 . 1 Gunslinging . | . . . . . Exploded . | . . . . . Melee . | . . . . . Uniques/NPCs Destroyed . | . . . . . Combat | -11 -10 -10 -10 -9 -------- Run | Yrd Mat Min Exi Min Hostile Shots Fired 95 | . 47 9 . 39 Missed 22 | . 11 3 . 8 Damage Taken 857 | . 417 91 . 349 Core 263 | . 126 14 . 123 Absorbed by Shields . | . . . . . Core Remaining (%) 100 | 100 . . . . Volleys Fired 100 | 11 51 7 . 31 Largest 2 | 2 2 2 . 2 Hottest 120 | 80 80 80 . 120 Shots Fired 174 | 21 98 14 . 41 Gun 168 | 21 98 14 . 35 Cannon 6 | . . . . 6 Launcher . | . . . . . Special . | . . . . . Kinetic 8 | . . . . 8 Thermal 95 | 10 47 7 . 31 Explosive . | . . . . . Electromagnetic 71 | 11 51 7 . 2 Robot Hit Streak 9 | 4 9 3 . 6 Robot Miss Streak 8 | 4 3 3 . 8 Penetration Max . | . . . . . Secondary Targets . | . . . . . Shots Hit Robots 103 | 12 64 7 . 20 Core Hits 60 | 8 33 5 . 14 Critical Kills . | . . . . . Critical Parts Destroyed . | . . . . . Critical Strikes 2 | . 1 . . 1 Burn 1 | . . . . 1 Corrupt 1 | . 1 . . . Melee Attacks . | . . . . . Impact . | . . . . . Slashing . | . . . . . Piercing . | . . . . . Sneak Attacks . | . . . . . Combat Hostiles . | . . . . . Follow-up Attacks . | . . . . . Damage Inflicted 1424 | 171 779 86 . 388 Guns 1167 | 126 779 86 . 176 Cannons 208 | . . . . 208 Explosions 45 | 45 . . . . Melee . | . . . . . Ramming 4 | . . . . 4 Kinetic 45 | . . . . 45 Thermal 778 | 109 320 21 . 328 Explosive . | . . . . . Electromagnetic 597 | 62 459 65 . 11 Impact . | . . . . . Slashing . | . . . . . Piercing . | . . . . . Highest Corruption . | . . . . . Average Corruption . | . . . . . Corruption Purged . | . . . . . Corruption Blocked . | . . . . . Overload Shots . | . . . . . Overflow Damage 12 | . . . . 12 Projectiles 12 | . . . . 12 Explosions . | . . . . . Melee . | . . . . . Knockbacks . | . . . . . Impact . | . . . . . Kinetic . | . . . . . Secondary . | . . . . . Self-Inflicted Damage . | . . . . . Shots . | . . . . . Rammed . | . . . . . Targets Rammed 1 | . . . . 1 Kicked 1 | . . . . 1 Crushed . | . . . . . Highest Temperature 643 | 90 144 77 . 643 Average Temperature 95 | 40 44 39 . 220 Received Heat Transfer 321 | . 231 54 . 36 Effects 12 | . . . . 12 Shutdowns 2 | . . . . 2 Interference 5 | . . . . 5 Matter Decay 1 | . . . . 1 Damage (minor) 1 | . . . . 1 Damage (major) 2 | . . . . 2 Damage (core) 1 | . . . . 1 Siege Activations . | . . . . . Robots Corrupted . | . . . . . Combat Hostiles . | . . . . . Parts Fried 2 | . 2 . . . Impact Corruptions . | . . . . . Robots Melted . | . . . . . Combat Hostiles . | . . . . . Parts Melted 1 | 1 . . . . Heat Transferred 1651 | 200 725 50 . 676 Parts Sabotaged . | . . . . . Parts Stolen . | . . . . . Parts Stripped . | . . . . . Power Chain Reactions 2 | 2 . . . . Alert | -11 -10 -10 -10 -9 ------- Run | Yrd Mat Min Exi Min Peak Influence 247 | 40 247 97 . 130 Initial 65 | . 26 65 . . Average 77 | 20 119 64 . 19 Maximum Alert Level 1 | . 1 . . . Low Security (%) 96 | 100 91 100 . 100 Level 1 3 | . 8 . . . Level 2 . | . . . . . Level 3 . | . . . . . Level 4 . | . . . . . Level 5 . | . . . . . High Security . | . . . . . Max Security . | . . . . . Squads Dispatched 6 | . 5 . . 1 Investigation 4 | . 4 . . . Extermination . | . . . . . Reinforcement 1 | . 1 . . . Assault 1 | . . . . 1 Garrison . | . . . . . Intercept . | . . . . . Searches Triggered . | . . . . . Construction Impeded . | . . . . . Haulers Reinforced . | . . . . . Active Scanning Responses . | . . . . . Cargo Convoy Interrupts . | . . . . . Stealth | -11 -10 -10 -10 -9 --------- Run | Yrd Mat Min Exi Min Distress Signals 2 | . 2 . . . Communications Jammed . | . . . . . Distress Signals . | . . . . . Times Spotted 32 | . 19 2 . 11 Peak Tracking Total 5 | . 3 2 . 5 Tactical Retreats 5 | . 3 . . 2 Traps | -11 -10 -10 -10 -9 ------- Run | Yrd Mat Min Exi Min Traps Triggered 3 | . 3 . . . Indirectly . | . . . . . Trap Hack Attempts . | . . . . . Triggered . | . . . . . Disarmed . | . . . . . Reprogrammed . | . . . . . Reused . | . . . . . Traps Extracted . | . . . . . Installed . | . . . . . Triggered . | . . . . . Machines | -11 -10 -10 -10 -9 ---------- Run | Yrd Mat Min Exi Min Machines Disabled 1 | . 1 . . . Max in Single Turn 1 | . 1 . . . Machines Repaired . | . . . . . Machines Dismantled . | . . . . . Machines Sabotaged . | . . . . . Overloaded Fab Kills . | . . . . . Hacking | -11 -10 -10 -10 -9 --------- Run | Yrd Mat Min Exi Min Machines Accessed 8 | . 6 . 2 . Terminals 6 | . 6 . . . Fabricators . | . . . . . Repair Stations . | . . . . . Recycling Units . | . . . . . Scanalyzers . | . . . . . Garrison Access . | . . . . . Total Hacks 17 | . 12 . 5 . Successful 11 | . 6 . 5 . Failed 6 | . 6 . . . Catastrophic . | . . . . . Database Lockouts . | . . . . . Manual 13 | . 12 . 1 . Terminals 12 | . 12 . . . Fabricators . | . . . . . Repair Stations . | . . . . . Recycling Units . | . . . . . Scanalyzers . | . . . . . Garrison Access . | . . . . . Terminal Hacks 5 | . . . 5 . Record 4 | . . . 4 . Derelict Proto ID Bank 1 | . . . 1 . Fabricator Hacks . | . . . . . Repair Station Hacks . | . . . . . Recycling Unit Hacks . | . . . . . Scanalyzer . | . . . . . Garrison Access Hacks . | . . . . . Unauthorized Hacks 6 | . 6 . . . Terminals 6 | . 6 . . . Botnet 6 | . 6 . . . Fabricators . | . . . . . Repair Stations . | . . . . . Recycling Units . | . . . . . Scanalyzers . | . . . . . Garrison Access . | . . . . . Data Cores Recovered 1 | . 1 . . . Used 1 | . 1 . . . Hacking Detections 3 | . 3 . . . Full Trace Events . | . . . . . Feedback Events . | . . . . . Feedback Blocked . | . . . . . Robot Schematics Acquired . | . . . . . Robots Built . | . . . . . Authchips . | . . . . . Time . | . . . . . Total Robot Build Rating . | . . . . . Part Schematics Acquired . | . . . . . Parts Built . | . . . . . Authchips . | . . . . . Time . | . . . . . Total Part Build Rating . | . . . . . Parts Repaired . | . . . . . Time . | . . . . . Parts Recycled . | . . . . . Recycled Matter . | . . . . . Retrieved Matter . | . . . . . Retrieved Components . | . . . . . Parts Scanalyzed . | . . . . . Part Schematics Acquired . | . . . . . Parts Damaged . | . . . . . Bothacking | -11 -10 -10 -10 -9 ------------ Run | Yrd Mat Min Exi Min Used RIF Installer . | . . . . . Robots Hacked . | . . . . . Non-combat . | . . . . . Combat . | . . . . . Robot Hacks Applied . | . . . . . Relay Couplers Released . | . . . . . Fabnet Peak Effective % . | . . . . . Robots Rewired . | . . . . . Allies Hacked . | . . . . . Hacks Repelled . | . . . . . Allies | -11 -10 -10 -10 -9 -------- Run | Yrd Mat Min Exi Min Total Allies 3 | . . 2 . 1 Largest Group 2 | . . 2 1 1 Highest-Rated Group 43 | . . 43 12 31 Highest-Rated Ally 31 | . . 31 12 31 Total Orders . | . . . . . Ally Attacks 7 | . . 5 . 2 Total Damage 63 | . . 63 . . Kills 1 | . . 1 . . Allies Corrupted . | . . . . . Allies Melted . | . . . . . Intel | -11 -10 -10 -10 -9 ------- Run | Yrd Mat Min Exi Min Robot Analysis Total . | . . . . . Derelict Logs Recovered . | . . . . . Drone Launches . | . . . . . Drone Recoveries . | . . . . . Exploration | -11 -10 -10 -10 -9 ------------- Run | Yrd Mat Min Exi Min Turns Passed 2864 | 147 953 512 811 441 Spaces Moved 1547 | 95 586 257 427 182 Core 16 | 16 . . . . Treads . | . . . . . Legs 1531 | 79 586 257 427 182 Wheels . | . . . . . Hover . | . . . . . Flight . | . . . . . Fastest Speed 50 | 50 120 190 190 190 Average Speed 162 | 108 129 190 190 190 Slowest Speed 190 | 120 190 190 190 190 Overloaded Moves . | . . . . . Propulsion Burnouts . | . . . . . Robots Hopped . | . . . . . Cave-ins Triggered . | . . . . . Exploration Rate (%) 57 | 3 86 64 89 44 Regions Visited 4 Branch Regions 3 Pre-discovered Areas 2 | . . 1 1 . Known Exits Taken . | . . . . . Unknown Exits Taken 4 | 1 1 1 1 . Scrap Searched . | . . . . . Spaces Dug . | . . . . . Terrain Destroyed 8 | 8 . . . . Melee . | . . . . . Projectile . | . . . . . AOE 8 | 8 . . . . Terrain Rammed . | . . . . . Walls Destroyed . | . . . . . Machines Disabled . | . . . . . Actions | -11 -10 -10 -10 -9 --------- Run | Yrd Mat Min Exi Min Total 1726 | 114 680 267 427 238 Wait 35 | . 24 . . 11 Move 1543 | 94 585 256 426 182 Hop . | . . . . . Pick Up 13 | 2 6 3 1 1 Fast Attach 10 | 7 1 . . 2 Attach 2 | . 1 1 . . Detach . | . . . . . Swap 15 | . 9 . . 6 Drop 7 | . 3 . . 4 Fire 100 | 11 51 7 . 31 Melee . | . . . . . Ram . | . . . . . Kick 1 | . . . . 1 Crush . | . . . . . Escape Stasis . | . . . . . Rewire . | . . . . . Trap . | . . . . . Miscellaneous . | . . . . . Route ------- -11/Scrapyard -10/Materials (discovered 4 exits: [*Mat x3] / [*Min]) -10/Mines -10/Exiles -9/Mines (discovered 1 exit: [*Mat]) History --------- Turn | Location | Event 4 | -11/Scrapyard | Discovered new exit (range 15) 148 | -11/Scrapyard | Entered Materials 306 | -10/Materials | Build established: Mutant 348 | -10/Materials | Discovered new exit (range 9) 727 | -10/Materials | Discovered new exit (range 16) 887 | -10/Materials | Discovered new exit (range 4) 967 | -10/Materials | Core integrity fell below 50% 1053 | -10/Materials | Discovered new exit (range 16) 1101 | -10/Materials | Entered Mines 1301 | -10/Mines | Build established: Scavenger-Mutant 1414 | -10/Mines | Learned location of Storage (-7) 1600 | -10/Mines | Deemed a non-threat by the Exiles lab entrance 1601 | -10/Mines | Discovered new exit (range 5) 1613 | -10/Mines | Entered Exiles 1613 | -10/Exiles | Accompanied by 1 ally 1659 | -10/Exiles | Met 8R-AWN 1688 | -10/Exiles | Met EX-HEX 1777 | -10/Exiles | Met EX-DEC 1827 | -10/Exiles | Visited The Gauntlet 2052 | -10/Exiles | Learned location of Zion (-7) 2085 | -10/Exiles | Met EX-BIN 2111 | -10/Exiles | Aligned with FarCom system 2113 | -10/Exiles | Given EX-Vault access code 2225 | -10/Exiles | Opened EX-Vault 2242 | -10/Exiles | Found Gui. Plasma Cannon 2287 | -10/Exiles | Warned to stay clear of 0b10 Research branches 2405 | -10/Exiles | Discovered new exit (range 12) 2424 | -10/Exiles | Left Exiles lab with Gui. Plasma Cannon 2424 | -10/Exiles | Entered Mines 2469 | -9/Mines | Met a Derelict testing a Signal Generator 2726 | -9/Mines | Build established: Scavenger-Skirmisher 2726 | -9/Mines | Discovered new exit (range 12) 2853 | -9/Mines | Core integrity fell below 20% 2866 | -9/Mines | Core destroyed Last Messages --------------- 02844_ Imp. Terrain Scanner temporarily disabled. 02844_ Lgt. Assault Rifle temporarily disabled. 02850_ Overheating: Lgt. Nuclear Core damaged (-12). 02858_ Power failure, Lgt. Nuclear Core shutdown. 02861_ Overheating: Matter decay (-43). 02861_ Acquired 12 matter. 02861_ Destroyed Flight Unit. 02862_ Overheating: System interference. 02862_ Gui. Plasma Cannon temporarily disabled. 02863_ S-10 Pest suffers critical hit (Burn). 02863_ S-10 Pest destroyed. 02865_ Power failure, Lgt. Nuclear Core shutdown. 02865_ Overheating: Beamcaster damaged (-34). 02865_ Overheating: Lgt. Nuclear Core damaged (-20). 02866_ Overheating: Core damaged (-50). Map ----- +----------------------------------------------------+ | ??????????????????????????????? | | ??????????????????????????????? | | ??????????????????????????????? | | ??????????????????????????????? | | ??????????????????????????????? | | ??????????????????????????????? | | ??????????????????????????????? | | ??????????????????????????????? | | ??????????????????????????????? | | ??? ????? ???????????????????? | | ?????????? ???????????????????? | | ?????????????????? ???????????? | | ?????????????#????????????????? | | ????????# ???????#??#####?????? | | ???###?## ???#???# ### ####?? | | ??# ##?# ###?#??# ## ??? | | ## ##? ???? ??? | | # #?? ????? #??? | | #?## #???????# < ???? | | #???# ######### ???? | | ##???# ## ##??? | | ####??### ## #?# /#?##? | | #???????# ## #??#%!#???? | | ##??????# ## #??#**#???? | | ###????# ## ##?#%=#???? | | ###### ## #??#%@#???# | | % #########??#%/#???? | | ########?#???????#=!#???? | | ##????#?##????????#==#???? | | #??#?#?#????#######*%#?#?# | | # ##?#???#?????# s %=##??? | | # #????#?##?##?# #####!=#???# | | ##????????????# #???#%[#???? | | #???##???#??#?# #???#* ##?#? | | #???#???#????## #??## ##?? | | #?#???###?#???# #### #?? | | #??#?#?#?#??### ## #?? | | ##?????#?#???## #?? | | #??????#??#?## #?? | | #??##?????### ##?? | | #??####### #??? | | #??# i ### #?? | | ##??# #### #####?? #? | | ###???? #??## ##??????# ##? | | ??????? #???## ##?#?????####? | | ????### #????# #?#?????????? | | #???# ?#??## #?????#?????? | | ##?## #????# ##???????????? | | #??# #??#?# #######??#???? | | #### #????# ## ###?#??## | +----------------------------------------------------+ Best States ------------- Heat Dissipation 25 Energy Generation 14 Energy Capacity 160 Matter Stores 300 Matter Capacity 300 Sight Range 16 Robot Scan Range 14 Terrain Scan Range 16 Terrain Scan Density 10 Evasion (%) 55 Item Schematics ----------------- None Robot Schematics ------------------ None Fabricated ------------ Nothing Alien Tech Used ----------------- None Achievements -------------- None Challenges ------------ None Game ------ Seed WeaponPersonalReconstructor Manual? 0 Play Time 00:18:51 Cumulative 35.9 hours Start 2024.08.17 @ 22:55:42 End 2024.08.17 @ 23:12:13 Sessions 1 Manual Loads 0 Difficulty Rogue Special Mode None Game No. 73 Rogue 32 Adventurer 41 Explorer 0 Win Type - Total 1 Types 1/0/0/0/0/0/0/0/0 Lore% 30 Gallery% 40 Achievement% 44 Wizard Run 0 Options --------- Layout 2 ASCII 0 Keyboard 0 Movement Arrows Keybinds 0 Fullscreen 2 Font 24/Smallcaps Map View 50x44 Zoom Use 0% Tactical HUD 1 Map Filters NONE Filters NONE Steam 1 RUN: ddad78f4-9677-4f50-a815-e0f42a0b7f6e